[Event "Titled Tuesday Blitz March 01 Late 2022"]
[White "Dronavalli, Harika"]
[Black "Niemann, Hans Moke"]
[WhiteFideId "5015197"]
[BlackFideId "2093596"]
[WhiteElo "2382"]
[BlackElo "2636"]
[Result "0-1"]
[Round "02"]
[TimeControl "180+1"]
[Date "2022.03.01"]
[WhiteClock "0:00:02"]
[BlackClock "0:00:09"]

1. d4 {[%clk 0:03:00]}  g6 {[%clk 0:02:55]} 2. h4 {[%clk 0:02:54]}  Nf6 {[%clk 0:02:55]} 3. c4 {[%clk 0:02:54]}  c5 {[%clk 0:02:49]} 4. d5 {[%clk 0:02:53]}  e5 {[%clk 0:02:50]} 5. Nc3 {[%clk 0:02:50]}  d6 {[%clk 0:02:48]} 6. e4 {[%clk 0:02:51]}  h5 {[%clk 0:02:47]} 7. f3 {[%clk 0:02:40]}  Bh6 {[%clk 0:02:47]} 8. Bxh6 {[%clk 0:02:39]}  Rxh6 {[%clk 0:02:48]} 9. Qd2 {[%clk 0:02:39]}  Rh8 {[%clk 0:02:48]} 10. O-O-O {[%clk 0:02:39]}  Na6 {[%clk 0:02:46]} 11. Kb1 {[%clk 0:02:37]}  Nc7 {[%clk 0:02:46]} 12. Nge2 {[%clk 0:02:34]}  a6 {[%clk 0:02:46]} 13. Nc1 {[%clk 0:02:33]}  Bd7 {[%clk 0:02:46]} 14. Be2 {[%clk 0:02:26]}  b5 {[%clk 0:02:45]} 15. Rdg1 {[%clk 0:02:26]}  Qe7 {[%clk 0:02:34]} 16. Nd1 {[%clk 0:02:23]}  Rb8 {[%clk 0:02:31]} 17. Qc2 {[%clk 0:02:17]}  bxc4 {[%clk 0:02:25]} 18. Bxc4 {[%clk 0:02:13]}  Nb5 {[%clk 0:02:26]} 19. Bxb5 {[%clk 0:02:11]}  axb5 {[%clk 0:02:20]} 20. Ne3 {[%clk 0:02:05]}  c4 {[%clk 0:02:16]} 21. g4 {[%clk 0:01:57]}  Bc8 {[%clk 0:02:14]} 22. Rh2 {[%clk 0:01:26]}  Qa7 {[%clk 0:02:10]} 23. Qf2 {[%clk 0:01:15]}  Ra8 {[%clk 0:01:40]} 24. g5 {[%clk 0:01:14]}  Nd7 {[%clk 0:01:40]} 25. f4 {[%clk 0:01:09]}  Qd4 {[%clk 0:01:38]} 26. Qf3 {[%clk 0:00:46]}  Nc5 {[%clk 0:01:30]} 27. fxe5 {[%clk 0:00:38]}  Qxe5 {[%clk 0:01:30]} 28. Re2 {[%clk 0:00:35]}  Ra7 {[%clk 0:01:22]} 29. Ree1 {[%clk 0:00:33]}  Re7 {[%clk 0:01:21]} 30. Nc2 {[%clk 0:00:29]}  Nxe4 {[%clk 0:01:16]} 31. Ka1 {[%clk 0:00:23]}  Bf5 {[%clk 0:01:13]} 32. Nb4 {[%clk 0:00:21]}  c3 {[%clk 0:01:05]} 33. bxc3 {[%clk 0:00:09]}  Qxc3+ {[%clk 0:01:04]} 34. Qxc3 {[%clk 0:00:09]}  Nxc3 {[%clk 0:01:05]} 35. Rxe7+ {[%clk 0:00:09]}  Kxe7 {[%clk 0:01:05]} 36. Re1+ {[%clk 0:00:10]}  Kd7 {[%clk 0:01:03]} 37. Nb3 {[%clk 0:00:10]}  Re8 {[%clk 0:01:00]} 38. Rxe8 {[%clk 0:00:11]}  Kxe8 {[%clk 0:01:01]} 39. Nd4 {[%clk 0:00:12]}  Bd7 {[%clk 0:00:56]} 40. Kb2 {[%clk 0:00:11]}  Nd1+ {[%clk 0:00:54]} 41. Kc1 {[%clk 0:00:11]}  Ne3 {[%clk 0:00:54]} 42. Kd2 {[%clk 0:00:11]}  Ng2 {[%clk 0:00:54]} 43. Nf3 {[%clk 0:00:12]}  Bg4 {[%clk 0:00:54]} 44. Nd4 {[%clk 0:00:10]}  Bd7 {[%clk 0:00:45]} 45. Nf3 {[%clk 0:00:10]}  Kd8 {[%clk 0:00:45]} 46. Nd3 {[%clk 0:00:10]}  Bg4 {[%clk 0:00:44]} 47. Nd4 {[%clk 0:00:09]}  Nxh4 {[%clk 0:00:39]} 48. Nxb5 {[%clk 0:00:09]}  Nf3+ {[%clk 0:00:34]} 49. Ke3 {[%clk 0:00:09]}  Nxg5 {[%clk 0:00:21]} 50. Nxd6 {[%clk 0:00:09]}  Kd7 {[%clk 0:00:18]} 51. Nc4 {[%clk 0:00:09]}  Bf5 {[%clk 0:00:18]} 52. Nde5+ {[%clk 0:00:08]}  Ke7 {[%clk 0:00:17]} 53. Nc6+ {[%clk 0:00:08]}  Kf6 {[%clk 0:00:17]} 54. a4 {[%clk 0:00:08]}  h4 {[%clk 0:00:17]} 55. a5 {[%clk 0:00:08]}  h3 {[%clk 0:00:17]} 56. Kf2 {[%clk 0:00:07]}  Be4 {[%clk 0:00:13]} 57. Kg3 {[%clk 0:00:07]}  Bxd5 {[%clk 0:00:13]} 58. N6e5 {[%clk 0:00:07]}  Bb7 {[%clk 0:00:09]} 59. Ng4+ {[%clk 0:00:07]}  Kg7 {[%clk 0:00:09]} 60. Nd6 {[%clk 0:00:06]}  Ba6 {[%clk 0:00:08]} 61. Ne5 {[%clk 0:00:06]}  f5 {[%clk 0:00:07]} 62. Nd7 {[%clk 0:00:03]}  f4+ {[%clk 0:00:08]} 63. Kh2 {[%clk 0:00:04]}  f3 {[%clk 0:00:08]} 64. Nc5 {[%clk 0:00:01]}  f2 {[%clk 0:00:08]} 65. Nde4 {[%clk 0:00:01]}  Nxe4 {[%clk 0:00:08]} 66. Nxe4 {[%clk 0:00:02]}  f1=Q {[%clk 0:00:09]} 0-1


[Site "https://www.chess.com"]

[Event "Titled Tuesday Blitz March 01 Late 2022"]
[White "Hoffmann, Asa"]
[Black "Romanchuk, Viktor"]
[WhiteFideId "2001470"]
[BlackFideId "14109271"]
[WhiteElo "2117"]
[BlackElo "2242"]
[Result "0-1"]
[Round "02"]
[TimeControl "180+1"]
[Date "2022.03.02"]
[WhiteClock "0:00:07"]
[BlackClock "0:00:37"]

1. d4 {[%clk 0:02:55]}  d5 {[%clk 0:02:59]} 2. Bg5 {[%clk 0:02:54]}  f6 {[%clk 0:02:58]} 3. Bf4 {[%clk 0:02:54]}  c5 {[%clk 0:02:57]} 4. e3 {[%clk 0:02:53]}  Nc6 {[%clk 0:02:57]} 5. Nf3 {[%clk 0:02:51]}  g5 {[%clk 0:02:57]} 6. Bg3 {[%clk 0:02:49]}  h5 {[%clk 0:02:57]} 7. h3 {[%clk 0:02:49]}  Nh6 {[%clk 0:02:49]} 8. Nc3 {[%clk 0:02:42]}  Nf5 {[%clk 0:02:47]} 9. Bd3 {[%clk 0:02:34]}  Kf7 {[%clk 0:02:31]} 10. Qd2 {[%clk 0:02:08]}  c4 {[%clk 0:01:51]} 11. Bxf5 {[%clk 0:01:53]}  Bxf5 {[%clk 0:01:52]} 12. O-O-O {[%clk 0:01:48]}  e6 {[%clk 0:01:50]} 13. a3 {[%clk 0:01:47]}  a6 {[%clk 0:01:47]} 14. Rde1 {[%clk 0:01:45]}  b5 {[%clk 0:01:45]} 15. e4 {[%clk 0:01:44]}  Bg6 {[%clk 0:01:43]} 16. exd5 {[%clk 0:01:34]}  exd5 {[%clk 0:01:44]} 17. Re3 {[%clk 0:01:26]}  b4 {[%clk 0:01:26]} 18. axb4 {[%clk 0:01:17]}  Bxb4 {[%clk 0:01:27]} 19. Rhe1 {[%clk 0:01:09]}  a5 {[%clk 0:01:27]} 20. Re6 {[%clk 0:01:05]}  Rc8 {[%clk 0:01:15]} 21. Qe3 {[%clk 0:00:59]}  Rf8 {[%clk 0:01:07]} 22. Re2 {[%clk 0:00:51]}  a4 {[%clk 0:01:03]} 23. Nxa4 {[%clk 0:00:46]}  Qa5 {[%clk 0:01:00]} 24. Rxf6+ {[%clk 0:00:27]}  Kxf6 {[%clk 0:00:55]} 25. Qxg5+ {[%clk 0:00:25]}  Kf7 {[%clk 0:00:53]} 26. Ne5+ {[%clk 0:00:21]}  Nxe5 {[%clk 0:00:52]} 27. Bxe5 {[%clk 0:00:20]}  Rc6 {[%clk 0:00:49]} 28. Nc3 {[%clk 0:00:10]}  Qa1+ {[%clk 0:00:43]} 29. Kd2 {[%clk 0:00:09]}  Qxb2 {[%clk 0:00:43]} 30. Re3 {[%clk 0:00:09]}  Qxc2+ {[%clk 0:00:41]} 31. Ke1 {[%clk 0:00:07]}  Bxc3+ {[%clk 0:00:37]} 0-1


[Site "https://www.chess.com"]

[Event "Titled Tuesday Blitz March 01 Late 2022"]
[White "Indjic, Aleksandar"]
[Black "Shuvalova, Polina"]
[WhiteFideId "911925"]
[BlackFideId "24171760"]
[WhiteElo "2616"]
[BlackElo "2355"]
[Result "1/2-1/2"]
[Round "02"]
[TimeControl "180+1"]
[Date "2022.03.01"]
[WhiteClock "0:00:35"]
[BlackClock "0:00:27"]

1. e4 {[%clk 0:02:50]}  c5 {[%clk 0:02:57]} 2. f4 {[%clk 0:02:48]}  d5 {[%clk 0:02:52]} 3. Bb5+ {[%clk 0:02:47]}  Nc6 {[%clk 0:02:52]} 4. Bxc6+ {[%clk 0:02:41]}  bxc6 {[%clk 0:02:52]} 5. d3 {[%clk 0:02:41]}  c4 {[%clk 0:02:18]} 6. dxc4 {[%clk 0:02:38]}  dxe4 {[%clk 0:02:15]} 7. Qxd8+ {[%clk 0:02:37]}  Kxd8 {[%clk 0:02:16]} 8. Nc3 {[%clk 0:02:36]}  f5 {[%clk 0:02:10]} 9. Be3 {[%clk 0:02:34]}  e5 {[%clk 0:02:04]} 10. Nge2 {[%clk 0:02:33]}  Be6 {[%clk 0:02:03]} 11. O-O-O+ {[%clk 0:02:31]}  Kc7 {[%clk 0:02:02]} 12. b3 {[%clk 0:02:30]}  Ba3+ {[%clk 0:01:37]} 13. Kb1 {[%clk 0:02:28]}  Nf6 {[%clk 0:01:27]} 14. h3 {[%clk 0:02:24]}  exf4 {[%clk 0:01:18]} 15. Bxf4+ {[%clk 0:02:20]}  Kb7 {[%clk 0:01:16]} 16. Bd6 {[%clk 0:02:14]}  Bxd6 {[%clk 0:01:13]} 17. Rxd6 {[%clk 0:02:15]}  Rhe8 {[%clk 0:01:02]} 18. Nf4 {[%clk 0:02:01]}  Bf7 {[%clk 0:00:57]} 19. Kc1 {[%clk 0:01:46]}  Kc7 {[%clk 0:00:56]} 20. Rxf6 {[%clk 0:01:35]}  gxf6 {[%clk 0:00:55]} 21. Re1 {[%clk 0:01:30]}  Rad8 {[%clk 0:00:52]} 22. Re3 {[%clk 0:01:28]}  Kd6 {[%clk 0:00:51]} 23. g3 {[%clk 0:01:25]}  Ke5 {[%clk 0:00:49]} 24. Nce2 {[%clk 0:01:24]}  c5 {[%clk 0:00:44]} 25. Nd3+ {[%clk 0:01:23]}  Kd6 {[%clk 0:00:44]} 26. Ndf4 {[%clk 0:01:23]}  Rg8 {[%clk 0:00:44]} 27. Kd2 {[%clk 0:01:18]}  a5 {[%clk 0:00:44]} 28. a4 {[%clk 0:01:18]}  Kc6+ {[%clk 0:00:41]} 29. Ke1 {[%clk 0:01:16]}  Rd7 {[%clk 0:00:41]} 30. Nc3 {[%clk 0:01:15]}  Rgd8 {[%clk 0:00:40]} 31. Re2 {[%clk 0:01:12]}  Rd4 {[%clk 0:00:37]} 32. h4 {[%clk 0:01:12]}  Rg8 {[%clk 0:00:36]} 33. Re3 {[%clk 0:01:12]}  Rd7 {[%clk 0:00:36]} 34. Ke2 {[%clk 0:00:44]}  Rdd8 {[%clk 0:00:36]} 35. Ke1 {[%clk 0:00:43]}  Rg4 {[%clk 0:00:36]} 36. Nce2 {[%clk 0:00:40]}  Kc7 {[%clk 0:00:35]} 37. Nc3 {[%clk 0:00:38]}  Kc6 {[%clk 0:00:28]} 38. Nce2 {[%clk 0:00:37]}  Rdg8 {[%clk 0:00:28]} 39. Kf2 {[%clk 0:00:35]}  Rd8 {[%clk 0:00:27]} 40. Ke1 {[%clk 0:00:35]} 1/2-1/2


[Site "https://www.chess.com"]

[Event "Titled Tuesday Blitz March 01 Late 2022"]
[White "Iskusnyh, Sergei"]
[Black "Sadhwani, Raunak"]
[WhiteFideId "4120027"]
[BlackFideId "35093487"]
[WhiteElo "2492"]
[BlackElo "2616"]
[Result "0-1"]
[Round "02"]
[TimeControl "180+1"]
[Date "2022.03.01"]
[WhiteClock "0:00:01"]
[BlackClock "0:00:20"]

1. d4 {[%clk 0:03:00]}  Nf6 {[%clk 0:02:59]} 2. c4 {[%clk 0:02:59]}  g6 {[%clk 0:03:00]} 3. g3 {[%clk 0:02:59]}  Bg7 {[%clk 0:03:00]} 4. Bg2 {[%clk 0:02:59]}  O-O {[%clk 0:03:01]} 5. Nc3 {[%clk 0:02:59]}  c5 {[%clk 0:03:01]} 6. dxc5 {[%clk 0:02:58]}  Na6 {[%clk 0:03:02]} 7. Nf3 {[%clk 0:02:53]}  Nxc5 {[%clk 0:03:02]} 8. O-O {[%clk 0:02:53]}  d6 {[%clk 0:03:02]} 9. Nd4 {[%clk 0:02:41]}  Bd7 {[%clk 0:02:42]} 10. b3 {[%clk 0:02:36]}  Qc8 {[%clk 0:02:35]} 11. Bb2 {[%clk 0:02:25]}  Bh3 {[%clk 0:02:35]} 12. Rc1 {[%clk 0:02:25]}  Qg4 {[%clk 0:02:24]} 13. Nd5 {[%clk 0:02:09]}  Nxd5 {[%clk 0:02:18]} 14. cxd5 {[%clk 0:02:09]}  Bxg2 {[%clk 0:02:12]} 15. Kxg2 {[%clk 0:02:08]}  Qe4+ {[%clk 0:02:11]} 16. f3 {[%clk 0:01:53]}  Qxd5 {[%clk 0:02:10]} 17. e4 {[%clk 0:01:53]}  Qh5 {[%clk 0:01:58]} 18. Qe2 {[%clk 0:01:45]}  Rac8 {[%clk 0:01:57]} 19. Rc4 {[%clk 0:01:32]}  Bxd4 {[%clk 0:01:24]} 20. Bxd4 {[%clk 0:01:21]}  Ne6 {[%clk 0:01:25]} 21. Ba1 {[%clk 0:01:05]}  Rxc4 {[%clk 0:01:21]} 22. Qxc4 {[%clk 0:01:04]}  Qc5 {[%clk 0:01:22]} 23. Qd3 {[%clk 0:00:31]}  Rc8 {[%clk 0:01:21]} 24. Rf2 {[%clk 0:00:31]}  f6 {[%clk 0:01:15]} 25. Bb2 {[%clk 0:00:31]}  Kf7 {[%clk 0:01:14]} 26. Qd2 {[%clk 0:00:30]}  g5 {[%clk 0:01:10]} 27. Qd3 {[%clk 0:00:28]}  Nf8 {[%clk 0:01:05]} 28. f4 {[%clk 0:00:22]}  gxf4 {[%clk 0:00:53]} 29. gxf4 {[%clk 0:00:15]}  Qh5 {[%clk 0:00:54]} 30. e5 {[%clk 0:00:11]}  Qg6+ {[%clk 0:00:33]} 31. Qxg6+ {[%clk 0:00:09]}  Nxg6 {[%clk 0:00:34]} 32. exf6 {[%clk 0:00:08]}  exf6 {[%clk 0:00:34]} 33. Kf3 {[%clk 0:00:08]}  d5 {[%clk 0:00:32]} 34. Rd2 {[%clk 0:00:07]}  Rd8 {[%clk 0:00:32]} 35. Bd4 {[%clk 0:00:07]}  a6 {[%clk 0:00:31]} 36. Rc2 {[%clk 0:00:07]}  Rd7 {[%clk 0:00:28]} 37. a4 {[%clk 0:00:06]}  Ne7 {[%clk 0:00:25]} 38. b4 {[%clk 0:00:03]}  Nf5 {[%clk 0:00:24]} 39. Bf2 {[%clk 0:00:02]}  h5 {[%clk 0:00:24]} 40. b5 {[%clk 0:00:02]}  axb5 {[%clk 0:00:19]} 41. axb5 {[%clk 0:00:02]}  Nd6 {[%clk 0:00:19]} 42. Rc5 {[%clk 0:00:02]}  Ne4 {[%clk 0:00:19]} 43. Rc8 {[%clk 0:00:02]}  Nd6 {[%clk 0:00:19]} 44. Rc5 {[%clk 0:00:01]}  Ke6 {[%clk 0:00:20]} 0-1


[Site "https://www.chess.com"]

[Event "Titled Tuesday Blitz March 01 Late 2022"]
[White "Jaracz, Pawel"]
[Black "Jakubowska, Anna"]
[WhiteFideId "1102222"]
[BlackFideId "1121952"]
[WhiteElo "2429"]
[BlackElo "1924"]
[Result "1-0"]
[Round "02"]
[TimeControl "180+1"]
[Date "2022.03.02"]
[WhiteClock "0:00:10"]
[BlackClock "0:00:16"]

1. d4 {[%clk 0:03:00]}  d5 {[%clk 0:02:54]} 2. c4 {[%clk 0:03:00]}  c6 {[%clk 0:02:54]} 3. e3 {[%clk 0:02:57]}  Nf6 {[%clk 0:02:54]} 4. Nc3 {[%clk 0:02:58]}  e6 {[%clk 0:02:52]} 5. b3 {[%clk 0:02:58]}  Nbd7 {[%clk 0:02:48]} 6. Bd3 {[%clk 0:02:57]}  Bd6 {[%clk 0:02:47]} 7. Nge2 {[%clk 0:02:56]}  O-O {[%clk 0:02:47]} 8. O-O {[%clk 0:02:49]}  dxc4 {[%clk 0:02:45]} 9. bxc4 {[%clk 0:02:48]}  e5 {[%clk 0:02:45]} 10. Ng3 {[%clk 0:02:47]}  Re8 {[%clk 0:02:40]} 11. a4 {[%clk 0:02:33]}  Nf8 {[%clk 0:02:31]} 12. a5 {[%clk 0:02:30]}  Ng6 {[%clk 0:01:58]} 13. d5 {[%clk 0:02:05]}  cxd5 {[%clk 0:01:54]} 14. cxd5 {[%clk 0:02:04]}  Bd7 {[%clk 0:01:44]} 15. a6 {[%clk 0:02:00]}  bxa6 {[%clk 0:01:24]} 16. Rxa6 {[%clk 0:01:54]}  Bc7 {[%clk 0:01:13]} 17. Nce4 {[%clk 0:01:28]}  Nxe4 {[%clk 0:01:05]} 18. Nxe4 {[%clk 0:01:25]}  f5 {[%clk 0:01:00]} 19. Nc5 {[%clk 0:01:25]}  e4 {[%clk 0:00:59]} 20. Bc4 {[%clk 0:01:14]}  Kh8 {[%clk 0:00:58]} 21. Ne6 {[%clk 0:01:07]}  Bxe6 {[%clk 0:00:55]} 22. dxe6 {[%clk 0:01:07]}  Ne5 {[%clk 0:00:53]} 23. Bd5 {[%clk 0:00:51]}  Qc8 {[%clk 0:00:42]} 24. Qa4 {[%clk 0:00:48]}  Rb8 {[%clk 0:00:41]} 25. Rxa7 {[%clk 0:00:46]}  Bb6 {[%clk 0:00:40]} 26. Rd7 {[%clk 0:00:42]}  Nd3 {[%clk 0:00:38]} 27. Bd2 {[%clk 0:00:40]}  Nc5 {[%clk 0:00:37]} 28. Qb5 {[%clk 0:00:32]}  Bc7 {[%clk 0:00:31]} 29. Qc6 {[%clk 0:00:30]}  Be5 {[%clk 0:00:21]} 30. Qxc8 {[%clk 0:00:28]}  Rbxc8 {[%clk 0:00:22]} 31. Rc1 {[%clk 0:00:23]}  Nxd7 {[%clk 0:00:20]} 32. exd7 {[%clk 0:00:20]}  Rxc1+ {[%clk 0:00:19]} 33. Bxc1 {[%clk 0:00:21]}  Rd8 {[%clk 0:00:19]} 34. Be6 {[%clk 0:00:22]}  Bf6 {[%clk 0:00:19]} 35. Bxf5 {[%clk 0:00:21]}  Rb8 {[%clk 0:00:19]} 36. Bxe4 {[%clk 0:00:18]}  g6 {[%clk 0:00:18]} 37. g3 {[%clk 0:00:18]}  Rb4 {[%clk 0:00:17]} 38. Bd3 {[%clk 0:00:10]}  Kg7 {[%clk 0:00:16]} 39. Kg2 {[%clk 0:00:10]}  Kf8 {[%clk 0:00:16]} 40. Ba3 {[%clk 0:00:10]} 1-0


[Site "https://www.chess.com"]

[Event "Titled Tuesday Blitz March 01 Late 2022"]
[White "Jobava, Baadur"]
[Black "Jarocka, Liwia"]
[WhiteFideId "13601520"]
[BlackFideId "21807558"]
[WhiteElo "2617"]
[BlackElo "1896"]
[Result "1-0"]
[Round "02"]
[TimeControl "180+1"]
[Date "2022.03.02"]
[WhiteClock "0:01:56"]
[BlackClock "0:01:07"]

1. b3 {[%clk 0:03:00]}  Nf6 {[%clk 0:02:58]} 2. Bb2 {[%clk 0:03:01]}  g6 {[%clk 0:02:55]} 3. Bxf6 {[%clk 0:03:01]}  exf6 {[%clk 0:02:56]} 4. c4 {[%clk 0:03:02]}  Bg7 {[%clk 0:02:56]} 5. Nc3 {[%clk 0:03:01]}  O-O {[%clk 0:02:56]} 6. g3 {[%clk 0:03:00]}  f5 {[%clk 0:02:57]} 7. Rc1 {[%clk 0:03:00]}  d6 {[%clk 0:02:54]} 8. Bg2 {[%clk 0:02:37]}  Nc6 {[%clk 0:02:53]} 9. e3 {[%clk 0:02:32]}  Ne7 {[%clk 0:02:36]} 10. Nge2 {[%clk 0:02:30]}  c6 {[%clk 0:02:36]} 11. d4 {[%clk 0:02:30]}  Be6 {[%clk 0:02:35]} 12. O-O {[%clk 0:02:28]}  d5 {[%clk 0:02:34]} 13. cxd5 {[%clk 0:02:28]}  Nxd5 {[%clk 0:02:33]} 14. Nxd5 {[%clk 0:02:28]}  Bxd5 {[%clk 0:02:34]} 15. Bxd5 {[%clk 0:02:28]}  Qxd5 {[%clk 0:02:34]} 16. Nf4 {[%clk 0:02:27]}  Qd7 {[%clk 0:02:34]} 17. Qf3 {[%clk 0:02:27]}  Rad8 {[%clk 0:02:28]} 18. Kg2 {[%clk 0:02:25]}  Rfe8 {[%clk 0:02:27]} 19. Rc2 {[%clk 0:02:22]}  a5 {[%clk 0:02:24]} 20. Rd1 {[%clk 0:02:20]}  a4 {[%clk 0:02:23]} 21. b4 {[%clk 0:02:17]}  Qe7 {[%clk 0:02:16]} 22. a3 {[%clk 0:02:16]}  Qe4 {[%clk 0:02:14]} 23. Rc5 {[%clk 0:02:11]}  Bh6 {[%clk 0:02:08]} 24. Nd3 {[%clk 0:02:10]}  Bf8 {[%clk 0:01:48]} 25. Ra5 {[%clk 0:02:08]}  Ra8 {[%clk 0:01:46]} 26. Rxa8 {[%clk 0:02:08]}  Rxa8 {[%clk 0:01:45]} 27. Qxe4 {[%clk 0:02:02]}  fxe4 {[%clk 0:01:45]} 28. Nc5 {[%clk 0:02:03]}  Bxc5 {[%clk 0:01:42]} 29. dxc5 {[%clk 0:02:03]}  Kf8 {[%clk 0:01:36]} 30. Rd7 {[%clk 0:02:02]}  Rb8 {[%clk 0:01:36]} 31. g4 {[%clk 0:01:57]}  Ke8 {[%clk 0:01:32]} 32. Rc7 {[%clk 0:01:57]}  Kf8 {[%clk 0:01:23]} 33. h4 {[%clk 0:01:56]}  h6 {[%clk 0:01:22]} 34. g5 {[%clk 0:01:54]}  hxg5 {[%clk 0:01:20]} 35. hxg5 {[%clk 0:01:55]}  b6 {[%clk 0:01:08]} 36. Rxc6 {[%clk 0:01:55]}  bxc5 {[%clk 0:01:08]} 37. Rxc5 {[%clk 0:01:56]}  Rc8 {[%clk 0:01:07]} 1-0


[Site "https://www.chess.com"]

[Event "Titled Tuesday Blitz March 01 Late 2022"]
[White "Krishnan, Varun"]
[Black "Demchenko, Anton"]
[WhiteFideId "5054508"]
[BlackFideId "4160258"]
[WhiteElo "2596"]
[BlackElo "2539"]
[Result "1-0"]
[Round "02"]
[TimeControl "180+1"]
[Date "2022.03.01"]
[WhiteClock "0:00:27"]
[BlackClock "0:00:43"]

1. e4 {[%clk 0:02:44]}  e5 {[%clk 0:02:59]} 2. Nf3 {[%clk 0:02:41]}  Nc6 {[%clk 0:02:59]} 3. Bb5 {[%clk 0:02:41]}  a6 {[%clk 0:02:59]} 4. Ba4 {[%clk 0:02:41]}  Nge7 {[%clk 0:03:00]} 5. O-O {[%clk 0:02:40]}  Ng6 {[%clk 0:03:00]} 6. c3 {[%clk 0:02:31]}  d6 {[%clk 0:03:00]} 7. d4 {[%clk 0:02:31]}  Bd7 {[%clk 0:03:00]} 8. Bg5 {[%clk 0:02:26]}  Be7 {[%clk 0:02:59]} 9. Bxe7 {[%clk 0:02:24]}  Qxe7 {[%clk 0:02:59]} 10. Nbd2 {[%clk 0:02:21]}  O-O {[%clk 0:02:59]} 11. Re1 {[%clk 0:02:20]}  b5 {[%clk 0:02:49]} 12. Bb3 {[%clk 0:02:17]}  Na5 {[%clk 0:02:28]} 13. Bc2 {[%clk 0:02:16]}  c5 {[%clk 0:02:27]} 14. Nf1 {[%clk 0:02:16]}  cxd4 {[%clk 0:02:21]} 15. cxd4 {[%clk 0:02:16]}  Bg4 {[%clk 0:02:21]} 16. Ne3 {[%clk 0:02:10]}  Bxf3 {[%clk 0:02:20]} 17. Qxf3 {[%clk 0:02:11]}  Nc6 {[%clk 0:02:21]} 18. Nf5 {[%clk 0:02:09]}  Qa7 {[%clk 0:02:18]} 19. d5 {[%clk 0:02:04]}  Nd4 {[%clk 0:02:16]} 20. Qd1 {[%clk 0:01:52]}  Nxf5 {[%clk 0:01:58]} 21. exf5 {[%clk 0:01:51]}  Nf4 {[%clk 0:01:58]} 22. g3 {[%clk 0:01:27]}  Nh3+ {[%clk 0:01:41]} 23. Kg2 {[%clk 0:01:27]}  Nxf2 {[%clk 0:01:27]} 24. Qe2 {[%clk 0:01:27]}  Rac8 {[%clk 0:01:24]} 25. Rac1 {[%clk 0:01:24]}  Qd4 {[%clk 0:01:18]} 26. Qxf2 {[%clk 0:01:20]}  Qxb2 {[%clk 0:01:17]} 27. f6 {[%clk 0:01:15]}  g6 {[%clk 0:01:17]} 28. Be4 {[%clk 0:00:58]}  Qb4 {[%clk 0:01:09]} 29. Qe3 {[%clk 0:00:51]}  Rxc1 {[%clk 0:00:58]} 30. Qh6 {[%clk 0:00:28]}  Qb2+ {[%clk 0:00:43]} 31. Kh3 {[%clk 0:00:27]} 1-0


[Site "https://www.chess.com"]

[Event "Titled Tuesday Blitz March 01 Late 2022"]
[White "Landaw, Julian"]
[Black "Chernikov, Vladimir"]
[WhiteFideId "2023342"]
[BlackFideId "14112914"]
[WhiteElo "2312"]
[BlackElo "2061"]
[Result "1-0"]
[Round "02"]
[TimeControl "180+1"]
[Date "2022.03.02"]
[WhiteClock "0:01:27"]
[BlackClock "0:00:15"]

1. e4 {[%clk 0:03:00]}  d6 {[%clk 0:02:55]} 2. Nc3 {[%clk 0:02:59]}  Nf6 {[%clk 0:02:54]} 3. g3 {[%clk 0:03:00]}  e5 {[%clk 0:02:52]} 4. Bg2 {[%clk 0:03:00]}  Be7 {[%clk 0:02:53]} 5. d3 {[%clk 0:03:01]}  O-O {[%clk 0:02:53]} 6. f4 {[%clk 0:03:01]}  c6 {[%clk 0:02:51]} 7. Nf3 {[%clk 0:03:02]}  b5 {[%clk 0:02:51]} 8. a3 {[%clk 0:03:01]}  Qc7 {[%clk 0:02:50]} 9. O-O {[%clk 0:03:01]}  a5 {[%clk 0:02:49]} 10. h3 {[%clk 0:03:00]}  Na6 {[%clk 0:02:48]} 11. Ne2 {[%clk 0:03:01]}  Bb7 {[%clk 0:02:46]} 12. g4 {[%clk 0:03:01]}  c5 {[%clk 0:02:40]} 13. g5 {[%clk 0:03:01]}  Nh5 {[%clk 0:02:37]} 14. Nh4 {[%clk 0:03:00]}  c4 {[%clk 0:02:28]} 15. f5 {[%clk 0:02:56]}  cxd3 {[%clk 0:02:26]} 16. cxd3 {[%clk 0:02:57]}  d5 {[%clk 0:02:14]} 17. Nc3 {[%clk 0:02:55]}  Nf4 {[%clk 0:02:01]} 18. Bxf4 {[%clk 0:02:49]}  exf4 {[%clk 0:02:02]} 19. f6 {[%clk 0:02:49]}  gxf6 {[%clk 0:01:43]} 20. exd5 {[%clk 0:02:43]}  fxg5 {[%clk 0:01:38]} 21. Nf5 {[%clk 0:02:42]}  Bf6 {[%clk 0:01:24]} 22. Qh5 {[%clk 0:02:36]}  Bxc3 {[%clk 0:01:16]} 23. bxc3 {[%clk 0:02:29]}  Qb6+ {[%clk 0:01:10]} 24. d4 {[%clk 0:02:25]}  Qf6 {[%clk 0:01:10]} 25. Be4 {[%clk 0:02:23]}  Rfe8 {[%clk 0:01:01]} 26. Nh6+ {[%clk 0:01:47]}  Kg7 {[%clk 0:00:52]} 27. Ng4 {[%clk 0:01:47]}  Qd6 {[%clk 0:00:25]} 28. Qxh7+ {[%clk 0:01:46]}  Kf8 {[%clk 0:00:25]} 29. Nh6 {[%clk 0:01:35]}  Qf6 {[%clk 0:00:18]} 30. d6 {[%clk 0:01:28]}  Bxe4 {[%clk 0:00:15]} 31. Qg8# {[%clk 0:01:27]} 1-0


[Site "https://www.chess.com"]

[Event "Titled Tuesday Blitz March 01 Late 2022"]
[White "Lopez Perdomo, Juan David"]
[Black "Glavina, Pablo"]
[WhiteFideId "4405137"]
[BlackFideId "100234"]
[WhiteElo "1997"]
[BlackElo "2369"]
[Result "1-0"]
[Round "02"]
[TimeControl "180+1"]
[Date "2022.03.02"]
[WhiteClock "0:01:27"]
[BlackClock "0:00:56"]

1. e4 {[%clk 0:03:00]}  e5 {[%clk 0:03:00]} 2. Nf3 {[%clk 0:03:00]}  Nc6 {[%clk 0:03:00]} 3. Bb5 {[%clk 0:03:00]}  a6 {[%clk 0:03:00]} 4. Ba4 {[%clk 0:03:00]}  Nf6 {[%clk 0:02:59]} 5. d3 {[%clk 0:03:01]}  Bc5 {[%clk 0:03:00]} 6. c3 {[%clk 0:03:00]}  b5 {[%clk 0:02:58]} 7. Bc2 {[%clk 0:03:00]}  d6 {[%clk 0:02:58]} 8. h3 {[%clk 0:03:00]}  O-O {[%clk 0:02:59]} 9. Bg5 {[%clk 0:03:00]}  h6 {[%clk 0:02:56]} 10. Be3 {[%clk 0:03:00]}  Bxe3 {[%clk 0:02:40]} 11. fxe3 {[%clk 0:03:01]}  d5 {[%clk 0:02:41]} 12. exd5 {[%clk 0:03:01]}  Nxd5 {[%clk 0:02:42]} 13. Qe2 {[%clk 0:03:01]}  Bb7 {[%clk 0:02:35]} 14. O-O {[%clk 0:03:01]}  Qe7 {[%clk 0:02:30]} 15. Nbd2 {[%clk 0:03:01]}  Rad8 {[%clk 0:02:26]} 16. Rad1 {[%clk 0:03:01]}  b4 {[%clk 0:02:26]} 17. c4 {[%clk 0:02:53]}  Nf6 {[%clk 0:02:26]} 18. Nh4 {[%clk 0:02:25]}  Bc8 {[%clk 0:01:57]} 19. Qf3 {[%clk 0:02:17]}  Ng4 {[%clk 0:01:40]} 20. hxg4 {[%clk 0:02:15]}  Qxh4 {[%clk 0:01:39]} 21. Qxc6 {[%clk 0:02:15]}  Bxg4 {[%clk 0:01:37]} 22. Nf3 {[%clk 0:02:14]}  Qg3 {[%clk 0:01:34]} 23. Rd2 {[%clk 0:02:04]}  h5 {[%clk 0:01:30]} 24. Qe4 {[%clk 0:02:03]}  h4 {[%clk 0:01:30]} 25. Qxe5 {[%clk 0:02:03]}  Bxf3 {[%clk 0:01:10]} 26. Qxg3 {[%clk 0:02:03]}  hxg3 {[%clk 0:01:11]} 27. Rxf3 {[%clk 0:02:03]}  c5 {[%clk 0:01:10]} 28. Rxg3 {[%clk 0:02:02]}  a5 {[%clk 0:01:11]} 29. b3 {[%clk 0:02:02]}  a4 {[%clk 0:01:12]} 30. d4 {[%clk 0:02:00]}  a3 {[%clk 0:01:12]} 31. d5 {[%clk 0:01:59]}  Rfe8 {[%clk 0:01:13]} 32. e4 {[%clk 0:02:00]}  Re5 {[%clk 0:01:13]} 33. Rf2 {[%clk 0:01:59]}  f5 {[%clk 0:01:10]} 34. Rxf5 {[%clk 0:01:57]}  Re7 {[%clk 0:01:10]} 35. e5 {[%clk 0:01:55]}  Rde8 {[%clk 0:01:05]} 36. e6 {[%clk 0:01:55]}  Rd8 {[%clk 0:01:05]} 37. Rh5 {[%clk 0:01:53]}  Rd6 {[%clk 0:00:58]} 38. Rgh3 {[%clk 0:01:53]}  g6 {[%clk 0:00:56]} 39. Bxg6 {[%clk 0:01:49]}  Kg7 {[%clk 0:00:56]} 40. Bc2 {[%clk 0:01:30]}  Kf6 {[%clk 0:00:56]} 41. Rf3+ {[%clk 0:01:27]} 1-0


[Site "https://www.chess.com"]